fUST/lending_fUST_20250227
["ID","MTS","AMOUNT","RATE_DAILY","PERIOD"]
[354710120,1740636196955,-500.0,0.00047397,120]
[354710121,1740636196980,-500.0,0.00047397,120]
[354710122,1740636197005,-2219.96,0.00047397,120]
[354710123,1740636197030,-1570.19,0.00047397,120]
[354710124,1740636197054,-900.11,0.00047397,120]
[354710125,1740636197079,-500.0,0.00047397,120]
[354710126,1740636197109,-922.53,0.00047397,120]
[354710127,1740636197133,-1111.66,0.00047397,120]
[354710128,1740636197160,-500.0,0.00047397,120]
[354710129,1740636197185,-500.0,0.00047397,120]
[354710130,1740636197214,-500.0,0.00047397,120]
[354710131,1740636197238,-849.46,0.00047397,120]
[354710132,1740636197263,-671.48,0.00047397,120]
[354710133,1740636197288,-1788.26,0.00047397,120]
[354710134,1740636197313,-500.0,0.00047397,120]
[354710135,1740636197337,-151.0,0.00047397,120]
[354710136,1740636197362,-500.0,0.00047397,120]
[354710137,1740636197386,-500.0,0.00047397,120]
[354710138,1740636197412,-500.0,0.00047397,120]
[354710139,1740636197436,-5098.08,0.00047397,120]
[354710140,1740636197461,-500.0,0.00047397,120]
[354710141,1740636197488,-500.0,0.00047397,120]
[354710142,1740636197512,-1129.98,0.00047397,120]
[354710143,1740636197537,-509.97,0.00047397,120]
[354710144,1740636197562,-500.0,0.00047397,120]
[354710145,1740636197586,-500.0,0.00047397,120]
[354710146,1740636197610,-500.0,0.00047397,120]
[354710147,1740636197633,-554.96037973,0.00047397,120]
[354710148,1740636197660,-2188.52,0.00047397,120]
[354710149,1740636197684,-151.0,0.00047397,120]
[354710150,1740636197708,-1818.02,0.00047397,120]
[354710151,1740636197731,-1025.05,0.00047397,120]
[354710152,1740636197754,-771.48,0.00047397,120]
[354710153,1740636197778,-500.0,0.00047397,120]
[354710154,1740636197803,-1960.61,0.00047397,120]
[354710155,1740636197828,-22776.55,0.00047397,120]
[354710156,1740636197852,-500.0,0.00047397,120]
[354710157,1740636197876,-500.0,0.00047397,120]
[354710158,1740636197901,-14815.95,0.00047397,6]
[354710159,1740636197928,-703.02,0.00047397,120]
[354710160,1740636197952,-500.0,0.00047397,120]
[354710161,1740636197978,-500.0,0.00047397,120]
[354710162,1740636198003,-1476.81,0.00047397,120]
[354710163,1740636198029,-2343.39,0.00047397,120]
[354710164,1740636198053,-500.0,0.00047397,120]
[354710165,1740636198078,-500.0,0.00047397,120]
[354710166,1740636198103,-637.29,0.00047397,120]
[354710167,1740636198128,-1335.27,0.00047397,120]
[354710168,1740636198154,-4042.52,0.00047397,120]
[354710169,1740636198183,-500.0,0.00047397,120]
[354710170,1740636198211,-2374.01,0.00047397,120]
[354710171,1740636198237,-500.0,0.00047397,120]
[354710172,1740636198263,-500.0,0.00047397,120]
[354710173,1740636198288,-500.0,0.00047397,120]
[354710174,1740636198313,-816.89,0.00047397,120]
[354710175,1740636198338,-644.91,0.00047397,120]
[354710176,1740636198362,-6398.07,0.00047397,120]
[354710177,1740636198387,-1274.38,0.00047397,120]
[354710178,1740636198416,-940.5,0.00047397,120]
[354710179,1740636198444,-500.0,0.00047397,120]
[354710180,1740636198473,-500.0,0.00047397,120]
[354710181,1740636198503,-2375.14,0.00047397,120]
[354710182,1740636198528,-500.0,0.00047542,2]
[354710183,1740636198553,-350.0,0.0004758,30]
[354710184,1740636198579,-350.0,0.0004758,30]
[354710185,1740636198603,-350.0,0.0004758,30]
[354710186,1740636198628,-350.0,0.0004758,30]
[354710187,1740636198653,-315.0,0.0004758,30]
[354710188,1740636198679,-350.0,0.0004758,30]
[354710189,1740636198705,-315.0,0.0004758,30]
[354710190,1740636198729,-350.0,0.0004758,30]
[354710191,1740636198758,-315.0,0.0004758,30]
[354710192,1740636198783,-350.0,0.0004758,30]
[354710193,1740636198809,-315.0,0.0004758,30]
[354710194,1740636198834,-350.0,0.0004758,30]
[354710195,1740636198859,-315.0,0.0004758,30]
[354710196,1740636198884,-350.0,0.0004758,30]
[354710197,1740636198909,-350.0,0.0004758,30]
[354710198,1740636198933,-315.0,0.0004758,30]
[354710199,1740636198958,-315.0,0.0004758,30]
[354710200,1740636198985,-350.0,0.0004758,30]
[354710201,1740636199010,-315.0,0.0004758,30]
[354710202,1740636199034,-350.0,0.0004758,30]
[354710203,1740636199058,-315.0,0.0004758,30]
[354710204,1740636199083,-350.0,0.0004758,30]
[354710205,1740636199114,-315.0,0.0004758,30]
[354710206,1740636199139,-350.0,0.0004758,30]
[354710207,1740636199165,-315.0,0.0004758,30]
[354710208,1740636199191,-350.0,0.0004758,30]
[354710209,1740636199217,-315.0,0.0004758,30]
[354710210,1740636199243,-350.0,0.0004758,30]
[354710211,1740636199269,-315.0,0.0004758,30]
[354710212,1740636199295,-350.0,0.0004758,30]
[354710213,1740636199321,-315.0,0.0004758,30]
[354710214,1740636199347,-367.70030312,0.0004758,30]
[354710215,1740636199372,-315.0,0.0004758,30]
[354710216,1740636199540,-322.67952379,0.0004758,30]
[354710217,1740636199567,-156.29837775,0.00047626,120]
[354710218,1740636199595,-500.0,0.00047671,120]
[354710219,1740636199621,-500.0,0.00047671,120]
[354710220,1740636199646,-500.0,0.00047671,120]
[354710221,1740636199671,-802.97,0.00047671,120]
[354710222,1740636199695,-500.0,0.00047671,120]
[354710223,1740636199720,-500.0,0.00047671,120]
[354710224,1740636199745,-500.0,0.00047671,120]
[354710225,1740636199769,-779.63,0.00047671,120]
[354710226,1740636199793,-500.0,0.00047671,120]
[354710227,1740636199818,-623.31,0.00047671,120]
[354710228,1740636199842,-500.0,0.00047671,120]
[354710229,1740636199866,-500.0,0.00047671,120]
[354710230,1740636199891,-500.0,0.00047671,120]
[354710231,1740636199916,-500.0,0.00047671,120]
[354710232,1740636199940,-500.0,0.00047671,120]
[354710233,1740636199963,-500.0,0.00047671,120]
[354710234,1740636199987,-500.0,0.00047671,120]
[354710235,1740636200015,-650.57,0.00047671,120]
[354710236,1740636200040,-500.0,0.00047671,120]
[354710237,1740636200066,-298.27609347,0.00047671,120]
[354710238,1740636200091,-500.0,0.00047671,120]
[354710239,1740636200116,-500.0,0.00047671,120]
[354710240,1740636200142,-151.0,0.00047671,120]
[354710241,1740636200172,-772.06,0.00047671,120]
[354710242,1740636200198,-840.54,0.00047671,120]
[354710243,1740636200224,-500.0,0.00047671,120]
[354710244,1740636200249,-500.0,0.00047671,120]
[354710245,1740636200275,-803.97,0.00047671,120]
[354710246,1740636200300,-151.0,0.00047671,120]
[354710247,1740636200325,-931.48,0.00047671,120]
[354710248,1740636200350,-500.0,0.00047671,120]
[354710249,1740636200376,-151.0,0.00047671,120]
[354710250,1740636200405,-1504.92,0.00047671,120]
[354710251,1740636200431,-532.87,0.00047671,120]
[354710252,1740636200456,-500.0,0.00047671,120]
[354710253,1740636200485,-500.0,0.00047671,120]
[354710254,1740636200509,-500.0,0.00047671,120]
[354710255,1740636200535,-1386.51,0.00047671,120]
[354710256,1740636200560,-669.61,0.00047671,120]
[354710257,1740636200587,-500.0,0.00047671,120]
[354710258,1740636200613,-1128.4,0.00047671,120]
[354710259,1740636200638,-500.0,0.00047671,120]
[354710260,1740636200664,-500.0,0.00047671,120]
[354710261,1740636200690,-500.0,0.00047671,120]
[354710262,1740636200715,-500.0,0.00047671,120]
[354710263,1740636200741,-501.0,0.00047671,120]
[354710264,1740636200768,-500.0,0.00047671,120]
[354710265,1740636200794,-500.0,0.00047671,120]
[354710266,1740636200821,-151.0,0.00047671,120]
[354710267,1740636200847,-151.0,0.00047671,120]
[354710268,1740636200872,-500.0,0.00047671,120]
[354710269,1740636200897,-735.02,0.00047671,120]
[354710270,1740636200924,-839.98,0.00047671,120]
[354710271,1740636200950,-625.57,0.00047671,120]
[354710272,1740636200975,-500.0,0.00047671,120]
[354710273,1740636201001,-500.0,0.00047671,120]
[354710274,1740636201027,-500.0,0.00047671,120]
[354710275,1740636201051,-1634.44,0.00047671,120]
[354710276,1740636201077,-744.24,0.00047671,120]
[354710277,1740636201101,-500.0,0.00047671,120]
[354710278,1740636201127,-560.63,0.00047671,120]
[354710279,1740636201151,-500.0,0.00047671,120]
[354710280,1740636201177,-500.0,0.00047671,120]
[354710281,1740636201202,-500.0,0.00047671,120]
[354710282,1740636201227,-500.0,0.00047671,120]
[354710283,1740636201253,-664.66,0.00047671,120]
[354710284,1740636201282,-233.8387792,0.00047671,120]
[354710285,1740636201309,-500.0,0.00047671,120]
[354710286,1740636201335,-500.0,0.00047671,120]
[354710287,1740636201360,-500.0,0.00047671,120]
[354710288,1740636201385,-500.0,0.00047671,120]
[354710289,1740636201412,-795.34,0.00047671,120]
[354710290,1740636201437,-569.90240042,0.00047671,120]
[354710291,1740636201462,-736.94,0.00047671,120]
[354710292,1740636201490,-500.0,0.00047671,120]
[354710293,1740636201515,-500.0,0.00047671,120]
[354710294,1740636201540,-669.38,0.00047671,120]
[354710295,1740636201564,-151.0,0.00047671,120]
[354710296,1740636201589,-500.0,0.00047671,120]
[354710297,1740636201613,-500.0,0.00047671,120]
[354710298,1740636201637,-542.07981495,0.00047671,120]
[354710299,1740636201665,-884.52,0.00047671,120]
[354710300,1740636201690,-190.140224,0.00047671,120]
[354710301,1740636201715,-529.97,0.00047671,120]
[354710302,1740636201740,-500.0,0.00047671,120]
[354710303,1740636201765,-500.0,0.00047671,120]
[354710304,1740636201790,-500.0,0.00047671,120]
[354710305,1740636201816,-10140.7,0.00047671,120]
[354710306,1740636201841,-500.0,0.00047671,120]
[354710307,1740636201867,-4573.11,0.00047671,120]
[354710308,1740636201891,-500.0,0.00047671,120]
[354710309,1740636201916,-606.81,0.00047671,120]
[354710310,1740636201942,-500.0,0.00047671,120]
[354710311,1740636201968,-500.0,0.00047671,120]
[354710312,1740636201994,-500.0,0.00047671,120]
[354710313,1740636202020,-620.68,0.00047671,120]
[354710314,1740636202047,-1356.3,0.00047671,120]
[354710315,1740636202076,-916.41,0.00047671,120]
[354710316,1740636202103,-500.0,0.00047671,120]
[354710317,1740636202130,-17931.29,0.00047671,120]
[354710318,1740636202161,-2325.02,0.00047671,120]
[354710319,1740636202187,-630.48,0.00047671,120]
[354710320,1740636202213,-500.0,0.00047671,120]
[354710321,1740636202238,-500.0,0.00047671,120]
[354710322,1740636202263,-232.149007,0.00047671,120]
[354710323,1740636202287,-1077.0,0.00047671,120]
[354710324,1740636202311,-232.149007,0.00047671,120]
[354710325,1740636202336,-6061.14,0.00047671,120]
[354710326,1740636202362,-863.16,0.00047671,120]
[354710327,1740636202387,-500.0,0.00047671,120]
[354710328,1740636202413,-1361.05,0.00047671,120]
[354710329,1740636202438,-500.0,0.00047671,30]
[354710330,1740636202462,-2772.83,0.00047671,120]
[354710331,1740636202489,-511.74,0.00047671,120]
[354710332,1740636202514,-500.0,0.00047671,120]
[354710333,1740636202539,-7424.48,0.00047671,3]
[354710334,1740636202564,-799.62,0.00047671,120]
[354710335,1740636202589,-500.0,0.00047671,120]
[354710336,1740636202613,-643.03,0.00047671,120]
[354710337,1740636202638,-1352.19,0.00047671,120]
[354710338,1740636202664,-2747.08,0.00047671,120]
[354710339,1740636202690,-500.0,0.00047671,120]
[354710340,1740636202716,-500.0,0.00047671,120]
[354710341,1740636202741,-823.35,0.00047671,120]
[354710342,1740636202768,-500.0,0.00047671,120]
[354710343,1740636202795,-2207.18,0.00047671,120]
[354710344,1740636202821,-1105.97,0.00047671,120]
[354710345,1740636202848,-87028.47,0.00047671,7]
[354710346,1740636203014,-500.0,0.00047671,120]
[354710347,1740636203043,-3729.66,0.00047671,120]
[354710348,1740636203069,-3624.9,0.00047671,120]
[354710349,1740636203095,-1177.15,0.00047671,120]
[354710350,1740636203121,-1736.82,0.00047671,120]
[354710351,1740636203147,-500.0,0.00047671,120]
[354710352,1740636203175,-500.0,0.00047671,120]
[354710353,1740636203201,-1000.0,0.00047671,2]
[354710354,1740636203230,-2175.67,0.00047671,120]
[354710355,1740636203256,-1686.22,0.00047671,120]
[354710356,1740636203283,-500.0,0.00047671,120]
[354710357,1740636203309,-500.0,0.00047671,120]
[354710358,1740636203336,-696.41,0.00047671,120]
[354710359,1740636203363,-1140.19,0.00047671,120]
[354710360,1740636203389,-500.0,0.00047671,120]
[354710361,1740636203416,-1492.29,0.00047671,120]
[354710362,1740636203443,-500.0,0.00047671,120]
[354710363,1740636203469,-1489.35,0.00047671,120]
[354710364,1740636203498,-500.0,0.00047671,120]
[354710365,1740636203524,-500.0,0.00047671,120]
[354710366,1740636203549,-2219.96,0.00047671,120]
[354710367,1740636203574,-1570.19,0.00047671,120]
[354710368,1740636203598,-900.11,0.00047671,120]
[354710369,1740636203623,-500.0,0.00047671,120]
[354710370,1740636203648,-922.53,0.00047671,120]
[354710371,1740636203674,-1111.66,0.00047671,120]
[354710372,1740636203700,-500.0,0.00047671,120]
[354710373,1740636203725,-582.80878711,0.00047671,120]
[354710374,1740636203751,-500.0,0.00047671,120]
[354710375,1740636203779,-849.46,0.00047671,120]
[354710376,1740636203807,-671.48,0.00047671,120]
[354710377,1740636203836,-1788.26,0.00047671,120]
[354710378,1740636203862,-500.0,0.00047671,120]
[354710379,1740636203887,-500.0,0.00047671,120]
[354710380,1740636203912,-500.0,0.00047671,120]
[354710381,1740636203938,-500.0,0.00047671,120]
[354710382,1740636203962,-5098.08,0.00047671,120]
[354710383,1740636203987,-500.0,0.00047671,120]
[354710384,1740636204012,-500.0,0.00047671,120]
[354710385,1740636204038,-1129.98,0.00047671,120]
[354710386,1740636204064,-509.97,0.00047671,120]
[354710387,1740636204095,-500.0,0.00047671,120]
[354710388,1740636204120,-500.0,0.00047671,120]
[354710389,1740636204145,-500.0,0.00047671,120]
[354710390,1740636204170,-2188.52,0.00047671,120]
[354710391,1740636204199,-151.0,0.00047671,120]
[354710392,1740636204225,-1025.05,0.00047671,120]
[354710393,1740636204250,-1818.02,0.00047671,120]
[354710394,1740636204275,-771.48,0.00047671,120]
[354710395,1740636204300,-500.0,0.00047671,120]
[354710396,1740636204326,-1960.61,0.00047671,120]
[354710397,1740636204351,-22776.55,0.00047671,120]
[354710398,1740636204377,-500.0,0.00047671,120]
[354710399,1740636204404,-500.0,0.00047671,120]
[354710400,1740636204432,-14815.95,0.00047671,6]
[354710401,1740636204459,-703.02,0.00047671,120]
[354710402,1740636204488,-500.0,0.00047671,120]
[354710403,1740636204515,-500.0,0.00047671,120]
[354710404,1740636204542,-2343.39,0.00047671,120]
[354710405,1740636204568,-1476.81,0.00047671,120]
[354710406,1740636204594,-500.0,0.00047671,120]
[354710407,1740636204619,-500.0,0.00047671,120]
[354710408,1740636204645,-637.29,0.00047671,120]
[354710409,1740636204670,-1335.27,0.00047671,120]
[354710410,1740636204696,-4042.52,0.00047671,120]
[354710411,1740636204722,-586.2143655,0.00047671,120]
[354710412,1740636204747,-2374.01,0.00047671,120]
[354710413,1740636204773,-500.0,0.00047671,120]
[354710414,1740636204797,-500.0,0.00047671,120]
[354710415,1740636204823,-500.0,0.00047671,120]
[354710416,1740636204848,-816.89,0.00047671,120]
[354710417,1740636204874,-644.91,0.00047671,120]
[354710418,1740636204900,-6398.07,0.00047671,120]
[354710419,1740636204926,-1274.38,0.00047671,120]
[354710420,1740636204951,-940.5,0.00047671,120]
[354710421,1740636204976,-500.0,0.00047671,120]
[354710422,1740636205001,-330.6353359,0.00047671,120]
[354710423,1740636205028,-2375.14,0.00047671,120]
[354710424,1740636205053,-500.0,0.00047945,120]
[354710425,1740636205078,-500.0,0.00047945,120]
[354710426,1740636205103,-500.0,0.00047945,120]
[354710427,1740636205128,-802.97,0.00047945,120]
[354710428,1740636205153,-500.0,0.00047945,120]
[354710429,1740636205179,-500.0,0.00047945,120]
[354710430,1740636205205,-500.0,0.00047945,120]
[354710431,1740636205230,-779.63,0.00047945,120]
[354710432,1740636205256,-500.0,0.00047945,120]
[354710433,1740636205283,-623.31,0.00047945,120]
[354710434,1740636205308,-500.0,0.00047945,120]
[354710435,1740636205334,-500.0,0.00047945,120]
[354710436,1740636205360,-500.0,0.00047945,120]
[354710437,1740636205387,-500.0,0.00047945,120]
[354710438,1740636205413,-500.0,0.00047945,120]
[354710439,1740636205439,-500.0,0.00047945,120]
[354710440,1740636205464,-500.0,0.00047945,120]
[354710441,1740636205492,-650.57,0.00047945,120]
[354710442,1740636205517,-500.0,0.00047945,120]
[354710443,1740636205542,-500.0,0.00047945,120]
[354710444,1740636205566,-500.0,0.00047945,120]
[354710445,1740636205592,-151.0,0.00047945,120]
[354710446,1740636205617,-772.06,0.00047945,120]
[354710447,1740636205642,-840.54,0.00047945,120]
[354710448,1740636205667,-500.0,0.00047945,120]
[354710449,1740636205692,-500.0,0.00047945,120]
[354710450,1740636205719,-803.97,0.00047945,120]
[354710451,1740636205746,-151.0,0.00047945,120]
[354710452,1740636205773,-931.48,0.00047945,120]
[354710453,1740636205799,-500.0,0.00047945,120]
[354710454,1740636205824,-151.0,0.00047945,120]
[354710455,1740636205849,-1504.92,0.00047945,120]
[354710456,1740636205874,-532.87,0.00047945,120]
[354710457,1740636205899,-185.1599965,0.00047945,120]
[354710458,1740636205923,-500.0,0.00047945,120]
[354710459,1740636205948,-500.0,0.00047945,120]
[354710460,1740636205973,-1386.51,0.00047945,120]
[354710461,1740636205997,-669.61,0.00047945,120]
[354710462,1740636206021,-500.0,0.00047945,120]
[354710463,1740636206047,-1128.4,0.00047945,120]
[354710464,1740636206073,-500.0,0.00047945,120]
[354710465,1740636206098,-500.0,0.00047945,120]
[354710466,1740636206124,-500.0,0.00047945,120]
[354710467,1740636206149,-500.0,0.00047945,120]
[354710468,1740636206188,-501.0,0.00047945,120]
[354710469,1740636206215,-500.0,0.00047945,120]
[354710470,1740636206241,-500.0,0.00047945,120]
[354710471,1740636206268,-151.0,0.00047945,120]
[354710472,1740636206295,-151.0,0.00047945,120]
[354710473,1740636206322,-500.0,0.00047945,120]
[354710474,1740636206349,-735.02,0.00047945,120]
[354710475,1740636206375,-839.98,0.00047945,120]
[354710476,1740636206527,-625.57,0.00047945,120]
[354710477,1740636206559,-500.0,0.00047945,120]
[354710478,1740636206586,-500.0,0.00047945,120]
[354710479,1740636206612,-500.0,0.00047945,120]
[354710480,1740636206639,-1634.44,0.00047945,120]
[354710481,1740636206665,-744.24,0.00047945,120]
[354710482,1740636206692,-500.0,0.00047945,120]
[354710483,1740636206719,-560.63,0.00047945,120]
[354710484,1740636206744,-500.0,0.00047945,120]
[354710485,1740636206770,-500.0,0.00047945,120]
[354710486,1740636206798,-500.0,0.00047945,120]
[354710487,1740636206824,-500.0,0.00047945,120]
[354710488,1740636206851,-664.66,0.00047945,120]
[354710489,1740636206878,-500.0,0.00047945,120]
[354710490,1740636206904,-500.0,0.00047945,120]
[354710491,1740636206930,-412.40282187,0.00047945,120]
[354710492,1740636206955,-500.0,0.00047945,120]
[354710493,1740636206980,-795.34,0.00047945,120]
[354710494,1740636207006,-736.94,0.00047945,120]
[354710495,1740636207033,-500.0,0.00047945,120]
[354710496,1740636207058,-500.0,0.00047945,120]
[354710497,1740636207084,-669.38,0.00047945,120]
[354710498,1740636207110,-500.0,0.00047945,120]
[354710499,1740636207136,-598.70807335,0.00047945,120]
[354710500,1740636207163,-884.52,0.00047945,120]
[354710501,1740636207191,-529.97,0.00047945,120]
[354710502,1740636207219,-500.0,0.00047945,120]
[354710503,1740636207247,-500.0,0.00047945,120]
[354710504,1740636207274,-500.0,0.00047945,120]
[354710505,1740636207300,-10140.7,0.00047945,120]
[354710506,1740636207326,-611.45690777,0.00047945,120]
[354710507,1740636207353,-4573.11,0.00047945,120]
[354710508,1740636207378,-500.0,0.00047945,120]
[354710509,1740636207404,-606.81,0.00047945,120]
[354710510,1740636207430,-500.0,0.00047945,120]
[354710511,1740636207455,-500.0,0.00047945,120]
[354710512,1740636207481,-500.0,0.00047945,120]
[354710513,1740636207513,-620.68,0.00047945,120]
[354710514,1740636207540,-1356.3,0.00047945,120]
[354710515,1740636207566,-916.41,0.00047945,120]
[354710516,1740636207592,-500.0,0.00047945,120]
[354710517,1740636207618,-17931.29,0.00047945,120]
[354710518,1740636207643,-2325.02,0.00047945,120]
[354710519,1740636207669,-630.48,0.00047945,120]
[354710520,1740636207696,-500.0,0.00047945,120]
[354710521,1740636207722,-500.0,0.00047945,120]
[354710522,1740636207748,-232.149007,0.00047945,120]
[354710523,1740636207781,-1077.0,0.00047945,120]
[354710524,1740636207811,-232.149007,0.00047945,120]
[354710525,1740636207838,-6061.14,0.00047945,120]
[354710526,1740636207865,-863.16,0.00047945,120]
[354710527,1740636207889,-500.0,0.00047945,120]
[354710528,1740636207915,-1361.05,0.00047945,120]
[354710529,1740636207940,-500.0,0.00047945,30]
[354710530,1740636207965,-2772.83,0.00047945,120]
[354710531,1740636207998,-511.74,0.00047945,120]
[354710532,1740636208035,-500.0,0.00047945,120]
[354710533,1740636208061,-7424.48,0.00047945,3]
[354710534,1740636208086,-799.62,0.00047945,120]
[354710535,1740636208111,-500.0,0.00047945,120]
[354710536,1740636208137,-643.03,0.00047945,120]
[354710537,1740636208164,-1352.19,0.00047945,120]
[354710538,1740636208191,-2747.08,0.00047945,120]
[354710539,1740636208219,-500.0,0.00047945,120]
[354710540,1740636208247,-500.0,0.00047945,120]
[354710541,1740636208277,-823.35,0.00047945,120]
[354710542,1740636208305,-500.0,0.00047945,120]
[354710543,1740636208330,-2207.18,0.00047945,120]
[354710544,1740636208356,-1105.97,0.00047945,120]
[354710545,1740636208381,-87028.47,0.00047945,7]
[354710546,1740636208407,-500.0,0.00047945,120]
[354710547,1740636208432,-3729.66,0.00047945,120]
[354710548,1740636208457,-3624.9,0.00047945,120]
[354710549,1740636208485,-1177.15,0.00047945,120]
[354710550,1740636208511,-1736.82,0.00047945,120]
[354710551,1740636208536,-500.0,0.00047945,120]
[354710552,1740636208561,-500.0,0.00047945,120]
[354710553,1740636208588,-1000.0,0.00047945,2]
[354710554,1740636208621,-2175.67,0.00047945,120]
[354710555,1740636208664,-1686.22,0.00047945,120]
[354710556,1740636208691,-500.0,0.00047945,120]
[354710557,1740636208717,-500.0,0.00047945,120]
[354710558,1740636208743,-696.41,0.00047945,120]
[354710559,1740636208768,-1140.19,0.00047945,120]
[354710560,1740636208795,-500.0,0.00047945,120]
[354710561,1740636208821,-1492.29,0.00047945,120]
[354710562,1740636208847,-500.0,0.00047945,120]
[354710563,1740636208873,-1489.35,0.00047945,120]
[354710564,1740636208899,-500.0,0.00047945,120]
[354710565,1740636208926,-500.0,0.00047945,120]
[354710566,1740636208952,-2219.96,0.00047945,120]
[354710567,1740636208977,-1570.19,0.00047945,120]
[354710568,1740636209002,-900.11,0.00047945,120]
[354710569,1740636209028,-500.0,0.00047945,120]
[354710570,1740636209054,-922.53,0.00047945,120]
[354710571,1740636209079,-1111.66,0.00047945,120]
[354710572,1740636209105,-500.0,0.00047945,120]
[354710573,1740636209130,-500.0,0.00047945,120]
[354710574,1740636209156,-849.46,0.00047945,120]
[354710575,1740636209182,-671.48,0.00047945,120]
[354710576,1740636209211,-1788.26,0.00047945,120]
[354710577,1740636209236,-214.65216749,0.00047945,120]
[354710578,1740636209261,-500.0,0.00047945,120]
[354710579,1740636209287,-500.0,0.00047945,120]
[354710580,1740636209312,-500.0,0.00047945,120]
[354710581,1740636209337,-5098.08,0.00047945,120]
[354710582,1740636209363,-500.0,0.00047945,120]
[354710583,1740636209389,-500.0,0.00047945,120]
[354710584,1740636209416,-1129.98,0.00047945,120]
[354710585,1740636209455,-509.97,0.00047945,120]
[354710586,1740636209484,-500.0,0.00047945,120]
[354710587,1740636209511,-500.0,0.00047945,120]
[354710588,1740636209535,-500.0,0.00047945,120]
[354710589,1740636209562,-2188.52,0.00047945,120]
[354710590,1740636209588,-1025.05,0.00047945,120]
[354710591,1740636209613,-1818.02,0.00047945,120]
[354710592,1740636209638,-771.48,0.00047945,120]
[354710593,1740636209664,-500.0,0.00047945,120]
[354710594,1740636209689,-1960.61,0.00047945,120]
[354710595,1740636209715,-22776.55,0.00047945,120]
[354710596,1740636209740,-500.0,0.00047945,120]
[354710597,1740636209766,-500.0,0.00047945,120]
[354710598,1740636209791,-703.02,0.00047945,120]
[354710599,1740636209820,-14815.95,0.00047945,6]
[354710600,1740636209846,-500.0,0.00047945,120]
[354710601,1740636209873,-500.0,0.00047945,120]
[354710602,1740636209899,-2343.39,0.00047945,120]
[354710603,1740636209925,-1476.81,0.00047945,120]
[354710604,1740636209949,-500.0,0.00047945,120]
[354710605,1740636209975,-500.0,0.00047945,120]
[354710606,1740636209999,-637.29,0.00047945,120]
[354710607,1740636210165,-1335.27,0.00047945,120]
[354710608,1740636210194,-4042.52,0.00047945,120]
[354710609,1740636210221,-2374.01,0.00047945,120]
[354710610,1740636210247,-500.0,0.00047945,120]
[354710611,1740636210273,-500.0,0.00047945,120]
[354710612,1740636210298,-500.0,0.00047945,120]
[354710613,1740636210324,-816.89,0.00047945,120]
[354710614,1740636210349,-644.91,0.00047945,120]
[354710615,1740636210374,-6398.07,0.00047945,120]
[354710616,1740636210400,-1274.38,0.00047945,120]
[354710617,1740636210426,-940.5,0.00047945,120]
[354710618,1740636210450,-500.0,0.00047945,120]
[354710619,1740636210475,-2375.14,0.00047945,120]